[Event "Live Chess"]
[Site "Chess.com"]
[Date "2023.05.20"]
[Round "-"]
[White "manthanit"]
[Black "f4nomore"]
[Result "0-1"]
[WhiteElo "1006"]
[BlackElo "1397"]
[TimeControl "300"]
[EndTime "14:30:02 PDT"]
[Termination "f4nomore won by resignation"]

1. e4 {[%clk 0:04:59.4]} 1... g6 {[%clk 0:04:59.4]} 2. g3 {[%clk 0:04:57.6]}
2... Bg7 {[%clk 0:04:59.3]} 3. Bg2 {[%clk 0:04:57.2]} 3... d6 {[%clk 0:04:57.8]}
4. Nc3 {[%clk 0:04:56.7]} 4... c5 {[%clk 0:04:56.7]} 5. Nf3 {[%clk 0:04:53]}
5... Nc6 {[%clk 0:04:55.5]} 6. Ne2 {[%clk 0:04:48.8]} 6... Bd7 {[%clk
0:04:54.1]} 7. d4 {[%clk 0:04:48]} 7... cxd4 {[%clk 0:04:52.1]} 8. Nexd4 {[%clk
0:04:46.8]} 8... Nxd4 {[%clk 0:04:50.5]} 9. Nxd4 {[%clk 0:04:45.8]} 9... Nf6
{[%clk 0:04:48.6]} 10. c3 {[%clk 0:04:41]} 10... O-O {[%clk 0:04:46.4]} 11. O-O
{[%clk 0:04:39.7]} 11... a6 {[%clk 0:04:40.5]} 12. a4 {[%clk 0:04:34.8]} 12...
e5 {[%clk 0:04:37.2]} 13. Nf3 {[%clk 0:04:25.8]} 13... Bc6 {[%clk 0:04:31.2]}
14. Bg5 {[%clk 0:04:22.8]} 14... h6 {[%clk 0:04:28.3]} 15. Bxf6 {[%clk
0:04:21.7]} 15... Bxf6 {[%clk 0:04:24.1]} 16. Re1 {[%clk 0:04:20.4]} 16... Bg7
{[%clk 0:04:18.9]} 17. b4 {[%clk 0:04:18]} 17... f6 {[%clk 0:04:10.2]} 18. Nh4
{[%clk 0:04:12.1]} 18... g5 {[%clk 0:04:06.2]} 19. Ng6 {[%clk 0:03:57.9]} 19...
Rf7 {[%clk 0:04:03.9]} 20. h4 {[%clk 0:03:57]} 20... Rd7 {[%clk 0:03:42.9]} 21.
hxg5 {[%clk 0:03:53.8]} 21... fxg5 {[%clk 0:03:41.5]} 22. f4 {[%clk 0:03:19.9]}
22... exf4 {[%clk 0:03:35.1]} 23. gxf4 {[%clk 0:03:19]} 23... Bxc3 {[%clk
0:03:30.7]} 24. fxg5 {[%clk 0:03:05.1]} 24... Qxg5 {[%clk 0:03:23.7]} 25. Qb3+
{[%clk 0:02:48.1]} 25... d5 {[%clk 0:03:12.6]} 26. exd5 {[%clk 0:02:36.9]} 26...
Bxd5 {[%clk 0:03:07.5]} 27. Qxd5+ {[%clk 0:02:34.4]} 27... Rxd5 {[%clk
0:03:00.4]} 28. Ne7+ {[%clk 0:02:26.8]} 28... Kg7 {[%clk 0:02:48.1]} 29. Nf5+
{[%clk 0:02:06]} 29... Rxf5 {[%clk 0:02:24.3]} 0-1

[Event "Live Chess"]
[Site "Chess.com"]
[Date "2023.05.20"]
[Round "-"]
[White "Doge_Dandolo"]
[Black "Pablo_dmp"]
[Result "1-0"]
[WhiteElo "2038"]
[BlackElo "1877"]
[TimeControl "300"]
[EndTime "14:30:07 PDT"]
[Termination "Doge_Dandolo won by checkmate"]

1. Nf3 {[%clk 0:04:58.8]} 1... d5 {[%clk 0:04:57.2]} 2. c4 {[%clk 0:04:57.3]}
2... e6 {[%clk 0:04:54.9]} 3. g3 {[%clk 0:04:55.6]} 3... Nf6 {[%clk 0:04:54.1]}
4. Bg2 {[%clk 0:04:54.4]} 4... Be7 {[%clk 0:04:50.1]} 5. O-O {[%clk 0:04:53.8]}
5... c6 {[%clk 0:04:49]} 6. d4 {[%clk 0:04:49.8]} 6... O-O {[%clk 0:04:45]} 7.
Qc2 {[%clk 0:04:48.7]} 7... Nbd7 {[%clk 0:04:39.3]} 8. Nbd2 {[%clk 0:04:44.5]}
8... Qc7 {[%clk 0:04:32.6]} 9. e4 {[%clk 0:04:33.7]} 9... dxe4 {[%clk
0:04:27.6]} 10. Nxe4 {[%clk 0:04:17.7]} 10... Nxe4 {[%clk 0:04:27.5]} 11. Qxe4
{[%clk 0:04:16.7]} 11... Nf6 {[%clk 0:04:27.2]} 12. Qc2 {[%clk 0:04:14.2]} 12...
Qa5 {[%clk 0:04:08.9]} 13. Bd2 {[%clk 0:04:08.1]} 13... Qh5 {[%clk 0:03:53.6]}
14. b4 {[%clk 0:03:58.9]} 14... Rd8 {[%clk 0:03:44.8]} 15. Rfe1 {[%clk
0:03:46.5]} 15... Bd7 {[%clk 0:03:32.3]} 16. Re5 {[%clk 0:03:40.9]} 16... Qg6
{[%clk 0:03:30]} 17. Qb2 {[%clk 0:03:26.6]} 17... Bd6 {[%clk 0:03:22.1]} 18. Nh4
{[%clk 0:03:21.4]} 18... Qd3 {[%clk 0:03:14.5]} 19. Re3 {[%clk 0:03:14.1]} 19...
Qxc4 {[%clk 0:03:09.8]} 20. Rc1 {[%clk 0:03:12.7]} 20... Qb5 {[%clk 0:03:06.3]}
21. Qb3 {[%clk 0:03:04.3]} 21... a5 {[%clk 0:03:03.2]} 22. a4 {[%clk 0:03:00.4]}
22... Qb6 {[%clk 0:02:57.3]} 23. b5 {[%clk 0:02:56.1]} 23... cxb5 {[%clk
0:02:53.9]} 24. axb5 {[%clk 0:02:53.7]} 24... Bc6 {[%clk 0:02:44.7]} 25. bxc6
{[%clk 0:02:50.7]} 25... Qxb3 {[%clk 0:02:43.6]} 26. Rxb3 {[%clk 0:02:49.7]}
26... bxc6 {[%clk 0:02:41.6]} 27. Rxc6 {[%clk 0:02:43.5]} 27... Nd5 {[%clk
0:02:37.3]} 28. Bxd5 {[%clk 0:02:35.2]} 28... exd5 {[%clk 0:02:37.2]} 29. Nf5
{[%clk 0:02:32.7]} 29... a4 {[%clk 0:02:35.6]} 30. Rb1 {[%clk 0:02:29.7]} 30...
Bf8 {[%clk 0:02:32.5]} 31. Rc7 {[%clk 0:02:25]} 31... a3 {[%clk 0:02:28.8]} 32.
Ne7+ {[%clk 0:02:18.5]} 32... Bxe7 {[%clk 0:02:26.4]} 33. Rxe7 {[%clk
0:02:17.2]} 33... a2 {[%clk 0:02:25.9]} 34. Ra1 {[%clk 0:02:15.8]} 34... Rdb8
{[%clk 0:02:25.2]} 35. Ree1 {[%clk 0:02:14.3]} 35... Rb2 {[%clk 0:02:22.6]} 36.
Bc3 {[%clk 0:02:10.5]} 36... Rc2 {[%clk 0:02:21.7]} 37. Rec1 {[%clk 0:02:07.1]}
37... Rxc1+ {[%clk 0:02:20.5]} 38. Rxc1 {[%clk 0:02:04.8]} 38... Ra3 {[%clk
0:02:18.4]} 39. Ba1 {[%clk 0:02:01.7]} 39... f6 {[%clk 0:02:11.8]} 40. Kf1
{[%clk 0:02:00.8]} 40... Rb3 {[%clk 0:02:08.3]} 41. Ke1 {[%clk 0:01:59]} 41...
Rb1 {[%clk 0:02:07.3]} 42. Kd1 {[%clk 0:01:57.9]} 42... Kf7 {[%clk 0:02:05.3]}
43. Kc2 {[%clk 0:01:56.5]} 43... Rb4 {[%clk 0:01:58.5]} 44. Bc3 {[%clk
0:01:53.3]} 44... Rb7 {[%clk 0:01:52.2]} 45. Ra1 {[%clk 0:01:52.2]} 45... Ra7
{[%clk 0:01:51]} 46. Kb3 {[%clk 0:01:49.8]} 46... Ke6 {[%clk 0:01:48.7]} 47.
Rxa2 {[%clk 0:01:47.7]} 47... Rb7+ {[%clk 0:01:47.9]} 48. Kc2 {[%clk 0:01:45.1]}
48... h5 {[%clk 0:01:45.1]} 49. Ra6+ {[%clk 0:01:41.3]} 49... Kf5 {[%clk
0:01:43.7]} 50. Rd6 {[%clk 0:01:37.2]} 50... Ke4 {[%clk 0:01:42.2]} 51. Kd2
{[%clk 0:01:32.3]} 51... Rb3 {[%clk 0:01:37.9]} 52. Rd7 {[%clk 0:01:30.3]} 52...
g5 {[%clk 0:01:34.3]} 53. h4 {[%clk 0:01:29]} 53... g4 {[%clk 0:01:30.4]} 54.
Rf7 {[%clk 0:01:21.7]} 54... Kf5 {[%clk 0:01:22.9]} 55. Rd7 {[%clk 0:01:18.8]}
55... Ke4 {[%clk 0:01:21.8]} 56. Rd6 {[%clk 0:01:16.9]} 56... Ra3 {[%clk
0:01:13.1]} 57. Rxf6 {[%clk 0:01:10.7]} 57... Ra2+ {[%clk 0:01:12.4]} 58. Ke1
{[%clk 0:01:08.3]} 58... Rc2 {[%clk 0:01:03.8]} 59. Bd2 {[%clk 0:01:04.3]} 59...
Kd3 {[%clk 0:01:02.3]} 60. Be3 {[%clk 0:01:01.6]} 60... Rb2 {[%clk 0:00:52]} 61.
Kf1 {[%clk 0:01:00.6]} 61... Ke4 {[%clk 0:00:42.7]} 62. Rf4+ {[%clk 0:00:56.6]}
62... Kd3 {[%clk 0:00:41]} 63. Rf5 {[%clk 0:00:55.6]} 63... Ke4 {[%clk 0:00:38]}
64. Rxh5 {[%clk 0:00:50.7]} 64... Kf3 {[%clk 0:00:37.5]} 65. Rf5+ {[%clk
0:00:49.3]} 65... Ke4 {[%clk 0:00:37]} 66. Rf4+ {[%clk 0:00:48.4]} 66... Kd3
{[%clk 0:00:35.9]} 67. Rxg4 {[%clk 0:00:45.7]} 67... Rb1+ {[%clk 0:00:35.8]} 68.
Kg2 {[%clk 0:00:44.5]} 68... Ke2 {[%clk 0:00:35.3]} 69. h5 {[%clk 0:00:40.7]}
69... Rb7 {[%clk 0:00:33]} 70. h6 {[%clk 0:00:39.5]} 70... Rh7 {[%clk
0:00:31.5]} 71. Rh4 {[%clk 0:00:37.1]} 71... Kd3 {[%clk 0:00:30.3]} 72. g4
{[%clk 0:00:36.1]} 72... Ke4 {[%clk 0:00:29.2]} 73. g5+ {[%clk 0:00:35.4]} 73...
Kf5 {[%clk 0:00:28.8]} 74. Kg3 {[%clk 0:00:30.6]} 74... Kg6 {[%clk 0:00:27]} 75.
f4 {[%clk 0:00:28.9]} 75... Rf7 {[%clk 0:00:26]} 76. Kg4 {[%clk 0:00:26.2]}
76... Kh7 {[%clk 0:00:25.2]} 77. f5 {[%clk 0:00:24.2]} 77... Kh8 {[%clk
0:00:24.9]} 78. g6 {[%clk 0:00:22.7]} 78... Rf8 {[%clk 0:00:18.1]} 79. g7+
{[%clk 0:00:20.9]} 79... Kh7 {[%clk 0:00:18]} 80. gxf8=N+ {[%clk 0:00:14.3]}
80... Kh8 {[%clk 0:00:16.9]} 81. Ng6+ {[%clk 0:00:12.5]} 81... Kh7 {[%clk
0:00:16.8]} 82. Ne7 {[%clk 0:00:10.5]} 82... Kh8 {[%clk 0:00:16.7]} 83. f6
{[%clk 0:00:07]} 83... Kh7 {[%clk 0:00:16.6]} 84. f7 {[%clk 0:00:04.5]} 84...
Kh8 {[%clk 0:00:15.9]} 85. f8=Q+ {[%clk 0:00:03.3]} 85... Kh7 {[%clk 0:00:15.8]}
86. Qg7# {[%clk 0:00:02.4]} 1-0

[Event "Live Chess"]
[Site "Chess.com"]
[Date "2023.05.20"]
[Round "-"]
[White "BostonStrangler"]
[Black "EdenHazard8"]
[Result "0-1"]
[WhiteElo "2045"]
[BlackElo "2056"]
[TimeControl "300"]
[EndTime "14:30:19 PDT"]
[Termination "EdenHazard8 won by resignation"]

1. Nf3 {[%clk 0:04:56.3]} 1... e6 {[%clk 0:04:58.5]} 2. g3 {[%clk 0:04:50.5]}
2... f5 {[%clk 0:04:55.9]} 3. Bg2 {[%clk 0:04:48.7]} 3... Nf6 {[%clk 0:04:54.4]}
4. O-O {[%clk 0:04:48.3]} 4... Be7 {[%clk 0:04:53]} 5. d3 {[%clk 0:04:47.9]}
5... O-O {[%clk 0:04:52.2]} 6. Nbd2 {[%clk 0:04:47.2]} 6... Nc6 {[%clk
0:04:46.2]} 7. e4 {[%clk 0:04:45.4]} 7... d6 {[%clk 0:04:44.7]} 8. a4 {[%clk
0:04:30]} 8... e5 {[%clk 0:04:43.3]} 9. exf5 {[%clk 0:04:24.4]} 9... Bxf5 {[%clk
0:04:41.3]} 10. a5 {[%clk 0:04:22.4]} 10... Qe8 {[%clk 0:04:39.6]} 11. a6 {[%clk
0:04:20.7]} 11... Qh5 {[%clk 0:04:30.3]} 12. axb7 {[%clk 0:04:17.8]} 12... Rab8
{[%clk 0:04:27.9]} 13. Nh4 {[%clk 0:04:09.1]} 13... Bg4 {[%clk 0:04:25.6]} 14.
f3 {[%clk 0:04:02.8]} 14... Bd7 {[%clk 0:04:21.9]} 15. f4 {[%clk 0:03:52.4]}
15... Ng4 {[%clk 0:04:03.1]} 16. h3 {[%clk 0:03:45.9]} 16... Bxh4 {[%clk
0:03:59.7]} 17. hxg4 {[%clk 0:03:39]} 17... Bxg4 {[%clk 0:03:57.5]} 18. Bf3
{[%clk 0:03:36.8]} 18... Bxg3 {[%clk 0:03:51.3]} 0-1

[Event "Live Chess"]
[Site "Chess.com"]
[Date "2023.05.20"]
[Round "-"]
[White "Long1968"]
[Black "Rusty_Bridges"]
[Result "0-1"]
[WhiteElo "1175"]
[BlackElo "1433"]
[TimeControl "300"]
[EndTime "14:30:20 PDT"]
[Termination "Rusty_Bridges won on time"]

1. e4 {[%clk 0:04:58.2]} 1... d6 {[%clk 0:04:57.4]} 2. d4 {[%clk 0:04:55.5]}
2... Nf6 {[%clk 0:04:56.1]} 3. Nc3 {[%clk 0:04:52.7]} 3... Nbd7 {[%clk
0:04:54.9]} 4. Bc4 {[%clk 0:04:48.6]} 4... e5 {[%clk 0:04:51.5]} 5. d5 {[%clk
0:04:34.5]} 5... a6 {[%clk 0:04:47.4]} 6. a4 {[%clk 0:04:31.1]} 6... Nc5 {[%clk
0:04:44]} 7. Qe2 {[%clk 0:04:17.9]} 7... Be7 {[%clk 0:04:37.9]} 8. Bg5 {[%clk
0:04:10.2]} 8... h6 {[%clk 0:04:36.3]} 9. Bxf6 {[%clk 0:04:03.7]} 9... Bxf6
{[%clk 0:04:34.8]} 10. f3 {[%clk 0:03:53.6]} 10... Bh4+ {[%clk 0:04:27.4]} 11.
g3 {[%clk 0:03:49.8]} 11... Bg5 {[%clk 0:04:24.2]} 12. h4 {[%clk 0:03:13]} 12...
Be7 {[%clk 0:04:08.7]} 13. Nh3 {[%clk 0:03:07.6]} 13... Bxh3 {[%clk 0:04:05.2]}
14. Rxh3 {[%clk 0:03:03.8]} 14... Qd7 {[%clk 0:04:03.6]} 15. Rh2 {[%clk
0:02:43.9]} 15... b6 {[%clk 0:03:58.2]} 16. b4 {[%clk 0:02:21.7]} 16... Nb7
{[%clk 0:03:52.4]} 17. b5 {[%clk 0:02:15.9]} 17... a5 {[%clk 0:03:46.3]} 18.
O-O-O {[%clk 0:01:38.4]} 18... Nc5 {[%clk 0:03:31.7]} 19. Kb2 {[%clk 0:01:18.3]}
19... g5 {[%clk 0:03:24.5]} 20. hxg5 {[%clk 0:01:03.9]} 20... Bxg5 {[%clk
0:03:21.5]} 21. Rdh1 {[%clk 0:00:41.7]} 21... O-O-O {[%clk 0:03:12.7]} 22. Na2
{[%clk 0:00:18.8]} 22... f5 {[%clk 0:02:58.2]} 23. Qe1 {[%clk 0:00:10.8]} 23...
fxe4 {[%clk 0:02:54.2]} 24. fxe4 {[%clk 0:00:07.4]} 24... Qh7 {[%clk 0:02:50.4]}
0-1

[Event "Live Chess"]
[Site "Chess.com"]
[Date "2023.05.20"]
[Round "-"]
[White "fso"]
[Black "xx_blindpuffin_xx"]
[Result "0-1"]
[WhiteElo "2238"]
[BlackElo "2194"]
[TimeControl "300"]
[EndTime "14:30:26 PDT"]
[Termination "xx_blindpuffin_xx won on time"]

1. e4 {[%clk 0:04:47.4]} 1... c6 {[%clk 0:04:58]} 2. d4 {[%clk 0:04:44]} 2... d5
{[%clk 0:04:57.2]} 3. Nd2 {[%clk 0:04:42.2]} 3... dxe4 {[%clk 0:04:55.8]} 4.
Nxe4 {[%clk 0:04:42.1]} 4... Bf5 {[%clk 0:04:55]} 5. Qe2 {[%clk 0:04:38.1]} 5...
e6 {[%clk 0:04:46.8]} 6. Nf3 {[%clk 0:04:36.3]} 6... Nf6 {[%clk 0:04:44.6]} 7.
Nxf6+ {[%clk 0:04:34.1]} 7... gxf6 {[%clk 0:04:44.4]} 8. c3 {[%clk 0:04:33.5]}
8... Nd7 {[%clk 0:04:41.8]} 9. Nh4 {[%clk 0:04:31.2]} 9... Bg6 {[%clk
0:04:39.2]} 10. Nxg6 {[%clk 0:04:30]} 10... hxg6 {[%clk 0:04:39.1]} 11. h3
{[%clk 0:04:29.2]} 11... Bd6 {[%clk 0:04:36.9]} 12. Be3 {[%clk 0:04:27.9]} 12...
Qc7 {[%clk 0:04:34.2]} 13. O-O-O {[%clk 0:04:25.7]} 13... O-O-O {[%clk
0:04:32.7]} 14. Kb1 {[%clk 0:04:24.5]} 14... Kb8 {[%clk 0:04:31.1]} 15. g3
{[%clk 0:04:22]} 15... f5 {[%clk 0:04:14.1]} 16. Bg2 {[%clk 0:04:19]} 16... f4
{[%clk 0:04:11.5]} 17. gxf4 {[%clk 0:04:16.2]} 17... Bxf4 {[%clk 0:04:11.4]} 18.
Qf3 {[%clk 0:04:13.6]} 18... Bxe3 {[%clk 0:03:56.8]} 19. fxe3 {[%clk 0:04:12.1]}
19... Nb6 {[%clk 0:03:44.8]} 20. e4 {[%clk 0:04:07.8]} 20... Nc4 {[%clk
0:03:37.9]} 21. Rhf1 {[%clk 0:04:02.6]} 21... f5 {[%clk 0:03:27.1]} 22. e5
{[%clk 0:03:45.7]} 22... g5 {[%clk 0:03:17.4]} 23. Qe2 {[%clk 0:03:37.9]} 23...
Nb6 {[%clk 0:03:12.8]} 24. Qd2 {[%clk 0:03:21.1]} 24... Nd5 {[%clk 0:02:51.2]}
25. Qxg5 {[%clk 0:03:13.7]} 25... Rdg8 {[%clk 0:02:46.6]} 26. Qd2 {[%clk
0:03:12]} 26... Qh7 {[%clk 0:02:14.4]} 27. Bxd5 {[%clk 0:03:09.3]} 27... cxd5
{[%clk 0:02:13]} 28. Rh1 {[%clk 0:03:05.1]} 28... f4+ {[%clk 0:02:11.1]} 29. Qd3
{[%clk 0:02:59.8]} 29... Qh4 {[%clk 0:02:05.1]} 30. Rdf1 {[%clk 0:02:53.5]}
30... Rg3 {[%clk 0:01:59.9]} 31. Qd2 {[%clk 0:02:43]} 31... f3 {[%clk
0:01:49.3]} 32. Qd1 {[%clk 0:02:20]} 32... Qe4+ {[%clk 0:01:24.7]} 33. Ka1
{[%clk 0:02:14.7]} 33... Rgxh3 {[%clk 0:01:19.1]} 34. Rxh3 {[%clk 0:02:12.9]}
34... Rxh3 {[%clk 0:01:19]} 35. a3 {[%clk 0:02:04.3]} 35... a6 {[%clk
0:01:12.9]} 36. Qa4 {[%clk 0:01:55.8]} 36... Qe2 {[%clk 0:00:57.8]} 37. Qd1
{[%clk 0:01:15.1]} 37... Qe3 {[%clk 0:00:54.3]} 38. Qe1 {[%clk 0:01:06.3]} 38...
Qd3 {[%clk 0:00:46]} 39. Qb1 {[%clk 0:00:54.5]} 39... Qe2 {[%clk 0:00:36.9]} 40.
Qe1 {[%clk 0:00:51.5]} 40... Qg2 {[%clk 0:00:36.5]} 41. Rf2 {[%clk 0:00:48.7]}
41... Qg3 {[%clk 0:00:34.9]} 42. Qf1 {[%clk 0:00:45.2]} 42... Ka7 {[%clk
0:00:32.6]} 43. Ka2 {[%clk 0:00:43.9]} 43... Kb8 {[%clk 0:00:31.1]} 44. Rd2
{[%clk 0:00:39.3]} 44... Rh4 {[%clk 0:00:28]} 45. Qf2 {[%clk 0:00:35]} 45... Qg4
{[%clk 0:00:25.8]} 46. Qe3 {[%clk 0:00:30]} 46... Rh3 {[%clk 0:00:24.1]} 47. Rf2
{[%clk 0:00:28.7]} 47... Rg3 {[%clk 0:00:22.9]} 48. Qh6 {[%clk 0:00:23.8]} 48...
Qf5 {[%clk 0:00:20.6]} 49. Qh8+ {[%clk 0:00:19]} 49... Ka7 {[%clk 0:00:19.8]}
50. Qd8 {[%clk 0:00:14.1]} 50... Rg1 {[%clk 0:00:18.5]} 51. Qd6 {[%clk
0:00:12.4]} 51... Qb1+ {[%clk 0:00:17.1]} 52. Kb3 {[%clk 0:00:10.4]} 52... Qf5
{[%clk 0:00:16.3]} 53. Qb4 {[%clk 0:00:09.4]} 53... Rg2 {[%clk 0:00:14.8]} 54.
Qc5+ {[%clk 0:00:08.7]} 54... Kb8 {[%clk 0:00:13.6]} 55. Qd6+ {[%clk 0:00:07.7]}
55... Ka7 {[%clk 0:00:13.1]} 56. Qc5+ {[%clk 0:00:06.8]} 56... Kb8 {[%clk
0:00:12.7]} 57. Qd6+ {[%clk 0:00:06.2]} 57... Kc8 {[%clk 0:00:12.2]} 58. Qc5+
{[%clk 0:00:04.5]} 58... Kd8 {[%clk 0:00:11.7]} 59. Qb6+ {[%clk 0:00:02.9]}
59... Ke8 {[%clk 0:00:11]} 60. Rxg2 {[%clk 0:00:00.3]} 60... fxg2 {[%clk
0:00:09.8]} 0-1

[Event "Live Chess"]
[Site "Chess.com"]
[Date "2023.05.20"]
[Round "-"]
[White "Jeffaroow"]
[Black "MaharerotheMagnificent"]
[Result "0-1"]
[WhiteElo "505"]
[BlackElo "1487"]
[TimeControl "300"]
[EndTime "14:30:39 PDT"]
[Termination "MaharerotheMagnificent won by resignation"]

1. e4 {[%clk 0:04:50.9]} 1... d5 {[%clk 0:04:54.9]} 2. Nf3 {[%clk 0:04:49.3]}
2... dxe4 {[%clk 0:04:51.3]} 3. Ng5 {[%clk 0:04:48.5]} 3... Nf6 {[%clk
0:04:46.9]} 4. d3 {[%clk 0:04:47.2]} 4... exd3 {[%clk 0:04:44.8]} 5. Bxd3 {[%clk
0:04:45.9]} 5... Nc6 {[%clk 0:04:40.7]} 6. b4 {[%clk 0:04:34]} 6... Nxb4 {[%clk
0:04:33.6]} 7. O-O {[%clk 0:04:25.9]} 7... Nxd3 {[%clk 0:04:24.6]} 8. Qxd3
{[%clk 0:04:23.2]} 8... Qxd3 {[%clk 0:04:20.6]} 9. cxd3 {[%clk 0:04:21.5]} 9...
Bf5 {[%clk 0:04:18.3]} 10. d4 {[%clk 0:04:11.2]} 10... O-O-O {[%clk 0:04:15]}
11. Be3 {[%clk 0:04:06.4]} 11... Bg6 {[%clk 0:04:09.9]} 12. Nc3 {[%clk
0:04:03.1]} 12... h6 {[%clk 0:04:07.4]} 13. Nf3 {[%clk 0:03:51.4]} 13... e6
{[%clk 0:04:01.6]} 14. Nb5 {[%clk 0:03:48.4]} 14... a6 {[%clk 0:03:56.1]} 15.
Na7+ {[%clk 0:03:46.2]} 15... Kb8 {[%clk 0:03:53]} 16. d5 {[%clk 0:03:40.6]}
16... exd5 {[%clk 0:03:46.4]} 17. Ne5 {[%clk 0:03:35.5]} 17... Bd6 {[%clk
0:03:38.2]} 18. Nec6+ {[%clk 0:03:31.1]} 18... bxc6 {[%clk 0:03:26.7]} 19. Nxc6+
{[%clk 0:03:28.8]} 19... Kc8 {[%clk 0:03:23.1]} 20. Nxd8 {[%clk 0:03:25.7]}
20... Rxd8 {[%clk 0:03:21]} 21. Rae1 {[%clk 0:03:15.2]} 21... Bd3 {[%clk
0:03:17.6]} 22. Bd4 {[%clk 0:02:40.8]} 22... Bxf1 {[%clk 0:03:13.9]} 23. Bxf6
{[%clk 0:02:35.4]} 23... gxf6 {[%clk 0:03:06.5]} 24. Rxf1 {[%clk 0:02:34.2]}
24... a5 {[%clk 0:02:53.2]} 25. Rd1 {[%clk 0:02:32.4]} 25... c6 {[%clk
0:02:49.4]} 26. Rc1 {[%clk 0:02:30.3]} 26... Kc7 {[%clk 0:02:46.3]} 27. g3
{[%clk 0:02:25.9]} 27... Re8 {[%clk 0:02:37.7]} 28. Rf1 {[%clk 0:02:11]} 28...
Re2 {[%clk 0:02:34.3]} 29. Rb1 {[%clk 0:02:03.1]} 29... Rxa2 {[%clk 0:02:30.6]}
30. Re1 {[%clk 0:01:57.7]} 30... a4 {[%clk 0:02:27.6]} 31. Re8 {[%clk
0:01:55.4]} 31... a3 {[%clk 0:02:24.4]} 32. Ra8 {[%clk 0:01:53.5]} 32... Ra1+
{[%clk 0:02:21.3]} 33. Kg2 {[%clk 0:01:50.7]} 33... a2 {[%clk 0:02:19.7]} 34. h4
{[%clk 0:01:44.6]} 34... Kb7 {[%clk 0:02:14.4]} 35. Ra4 {[%clk 0:01:39.5]} 35...
c5 {[%clk 0:02:00.3]} 36. f4 {[%clk 0:01:28.4]} 36... d4 {[%clk 0:01:58.7]} 37.
Kf2 {[%clk 0:01:18.7]} 37... Kc6 {[%clk 0:01:49.6]} 38. Ke2 {[%clk 0:01:09.1]}
38... Kd5 {[%clk 0:01:48.1]} 39. Kd3 {[%clk 0:01:07.8]} 39... f5 {[%clk
0:01:44.1]} 40. Ra3 {[%clk 0:00:56.3]} 40... c4+ {[%clk 0:01:40.1]} 0-1

[Event "Live Chess"]
[Site "Chess.com"]
[Date "2023.05.20"]
[Round "-"]
[White "RamsayFlayer"]
[Black "JoeyCage"]
[Result "0-1"]
[WhiteElo "1987"]
[BlackElo "2305"]
[TimeControl "300"]
[EndTime "14:30:52 PDT"]
[Termination "JoeyCage won - game abandoned"]

1. e4 {[%clk 0:04:57.3]} 1... c5 {[%clk 0:04:58.8]} 2. c3 {[%clk 0:04:56]} 2...
Nf6 {[%clk 0:04:56.8]} 3. e5 {[%clk 0:04:54.4]} 3... Nd5 {[%clk 0:04:55.5]} 4.
d4 {[%clk 0:04:53.8]} 4... cxd4 {[%clk 0:04:53]} 5. cxd4 {[%clk 0:04:53.7]} 5...
Nc6 {[%clk 0:04:52.3]} 6. Nc3 {[%clk 0:04:51.3]} 6... e6 {[%clk 0:04:51.2]} 7.
Nxd5 {[%clk 0:04:48.8]} 7... exd5 {[%clk 0:04:50.1]} 8. Nf3 {[%clk 0:04:47.2]}
8... d6 {[%clk 0:04:49.2]} 9. Bf4 {[%clk 0:04:39.8]} 9... dxe5 {[%clk
0:04:47.8]} 10. Nxe5 {[%clk 0:04:37.3]} 10... Bb4+ {[%clk 0:04:46]} 11. Bd2
{[%clk 0:04:31.8]} 11... Qa5 {[%clk 0:04:38.5]} 12. Nxc6 {[%clk 0:04:21.3]}
12... bxc6 {[%clk 0:04:36.7]} 13. Bxb4 {[%clk 0:04:17.9]} 13... Qxb4+ {[%clk
0:04:35.3]} 14. Qd2 {[%clk 0:04:17.8]} 14... Qb6 {[%clk 0:04:23.4]} 15. Qe3+
{[%clk 0:04:01]} 15... Be6 {[%clk 0:04:20.9]} 16. O-O-O {[%clk 0:03:59]} 16...
O-O {[%clk 0:04:18.5]} 17. Qb3 {[%clk 0:03:51.4]} 17... Qxb3 {[%clk 0:04:16.1]}
18. axb3 {[%clk 0:03:50.9]} 18... Rab8 {[%clk 0:04:14.9]} 19. Rd3 {[%clk
0:03:46.3]} 19... Rb4 {[%clk 0:04:10.8]} 20. Rc3 {[%clk 0:03:40]} 20... Rxd4
{[%clk 0:04:09]} 21. Rxc6 {[%clk 0:03:38.4]} 21... Rb8 {[%clk 0:04:07.2]} 22.
Ra6 {[%clk 0:03:22.1]} 22... Rdb4 {[%clk 0:04:03.9]} 23. Rxa7 {[%clk 0:03:18.6]}
23... Rxb3 {[%clk 0:04:02.6]} 24. Ra2 {[%clk 0:03:04]} 24... d4 {[%clk
0:04:01.1]} 0-1

[Event "Live Chess"]
[Site "Chess.com"]
[Date "2023.05.20"]
[Round "-"]
[White "nigelst"]
[Black "Wild_Tiger"]
[Result "1-0"]
[WhiteElo "1834"]
[BlackElo "1072"]
[TimeControl "300"]
[EndTime "14:31:00 PDT"]
[Termination "nigelst won by resignation"]

1. e4 {[%clk 0:04:58.5]} 1... e5 {[%clk 0:04:56.4]} 2. Nf3 {[%clk 0:04:56.3]}
2... Nc6 {[%clk 0:04:56.2]} 3. Bb5 {[%clk 0:04:54.8]} 3... Bb4 {[%clk
0:04:53.2]} 4. O-O {[%clk 0:04:51.5]} 4... a6 {[%clk 0:04:51]} 5. Bxc6 {[%clk
0:04:49.4]} 5... bxc6 {[%clk 0:04:48.3]} 6. Nxe5 {[%clk 0:04:48.2]} 6... Nf6
{[%clk 0:04:41.8]} 7. c3 {[%clk 0:04:45.5]} 7... Bd6 {[%clk 0:04:39.3]} 8. d4
{[%clk 0:04:44]} 8... Nxe4 {[%clk 0:04:33.7]} 9. Qf3 {[%clk 0:04:35.7]} 9... Nf6
{[%clk 0:04:26.3]} 10. Bg5 {[%clk 0:04:32.4]} 10... Be7 {[%clk 0:04:20.3]} 11.
Nd2 {[%clk 0:04:26.2]} 11... Bb7 {[%clk 0:04:18]} 12. Rfe1 {[%clk 0:04:10.9]}
12... d6 {[%clk 0:04:16.3]} 13. Nxc6 {[%clk 0:03:50.1]} 13... Bxc6 {[%clk
0:04:10.6]} 14. Qxc6+ {[%clk 0:03:48.5]} 14... Nd7 {[%clk 0:04:05.1]} 15. Rxe7+
{[%clk 0:03:43]} 15... Qxe7 {[%clk 0:04:02.8]} 16. Bxe7 {[%clk 0:03:39]} 16...
Kxe7 {[%clk 0:04:01.6]} 17. Re1+ {[%clk 0:03:36.3]} 17... Kf6 {[%clk 0:03:53.1]}
18. Qxd7 {[%clk 0:03:35.1]} 18... Rab8 {[%clk 0:03:45.9]} 19. b3 {[%clk
0:03:30.5]} 19... Rhc8 {[%clk 0:03:42.1]} 20. g4 {[%clk 0:03:25.7]} 20... g6
{[%clk 0:03:29.3]} 21. Ne4+ {[%clk 0:03:16.8]} 21... Kg7 {[%clk 0:03:26.7]} 22.
Ng5 {[%clk 0:03:15.3]} 22... Rf8 {[%clk 0:03:23]} 23. Ne6+ {[%clk 0:03:12.1]}
23... Kg8 {[%clk 0:03:19.2]} 24. Nxf8 {[%clk 0:03:10.8]} 24... Rxf8 {[%clk
0:03:18.8]} 25. Re8 {[%clk 0:03:08.7]} 25... Rxe8 {[%clk 0:03:17]} 26. Qxe8+
{[%clk 0:03:07.8]} 26... Kg7 {[%clk 0:03:16.6]} 27. Qe7 {[%clk 0:03:06.9]} 27...
d5 {[%clk 0:03:14.2]} 28. Qxc7 {[%clk 0:03:04.9]} 1-0